Cogmind - Beta 16.1 @@@ ROGUE MODE // 2026.04.20 @ 16:58:12 Player: Maelyn Result: Destroyed by S-10 Pest with Light Assault Rifle Performance ------------- Evolutions (2) 1000 Regions Visited (3) 600 Robots Destroyed (34) 170 Value Destroyed (764) 764 Prototype IDs (0) 0 Alien Tech Used (0) 0 Bonus (0) 0 TOTAL SCORE: 2534 Bonus ------- None Cogmind --------- Core Integrity 0/550 Matter 147/300 Energy 100/100 System Corruption 0% Temperature Cool (0) Movement Core (200) Ox3 Location -8/Materials Parts ------- > --- POWER (1) -------- (None) > --- PROPULSION (4) --- (None) > --- UTILITY (4) ------ Medium Storage Unit Improved Signal Interpreter > --- WEAPON (2) ------- (None) > --- INVENTORY (10) --- Airjet VTOL Module VTOL Module VTOL Module Improved Flight Unit Improved Flight Unit Heat Sink Heavy Particle Cannon Grenade Launcher Peak State ------------ > --- POWER ------------ (None) > --- PROPULSION ------- Armored Wheel Armored Wheel Armored Wheel > --- UTILITY ---------- Improved Heat Sink Medium Storage Unit Improved Sensor Array Improved Signal Interpreter > --- WEAPON ----------- Heavy Particle Cannon Heavy Particle Cannon > --- INVENTORY -------- Airjet VTOL Module VTOL Module VTOL Module Improved Flight Unit Improved Flight Unit Heat Sink Grenade Launcher Improved Grenade Launcher [Rating: 24] Favorites ----------- Power Ion Engine Engine Ion Engine Propulsion Armored Wheel Treads Light Treads Leg Aluminum Leg Wheel Armored Wheel Utility Medium Storage Unit Device Heat Sink Storage Medium Storage Unit Processor Improved Signal Interpreter Protection Light Armor Plating Weapon Heavy Assault Rifle Energy Gun Small Laser Energy Cannon Heavy Particle Cannon Ballistic Gun Heavy Assault Rifle Launcher Improved Grenade Launcher Build | -11 -10 -9 -8 ------- Run | Yrd Mat Mat Mat Slots Evolved 4 | . . 2 2 Power . | . . . . Propulsion 2 | . . 1 1 Utility 2 | . . 1 1 Weapon . | . . . . Parts Attached 28 | 7 6 10 5 Power 4 | 1 1 1 1 Engine 4 | 1 1 1 1 Core . | . . . . Reactor . | . . . . Propulsion 8 | 2 2 4 . Treads 3 | 2 . 1 . Leg 2 | . 2 . . Wheel 3 | . . 3 . Hover . | . . . . Flight . | . . . . Utility 8 | 1 3 1 3 Device 4 | . 2 . 2 Storage 2 | 1 1 . . Processor 1 | . . . 1 Hackware . | . . . . Protection 1 | . . 1 . Artifact . | . . . . Weapon 8 | 3 . 4 1 Energy Gun 2 | 2 . . . Energy Cannon 2 | . . 2 . Ballistic Gun 3 | 1 . 2 . Ballistic Cannon . | . . . . Launcher 1 | . . . 1 Special Weapon . | . . . . Impact Weapon . | . . . . Slashing Weapon . | . . . . Piercing Weapon . | . . . . Special Melee Weapon . | . . . . Unidentified Prototypes . | . . . . Parts Lost 18 | . 3 7 8 Power 4 | . 1 2 1 Propulsion 5 | . 1 1 3 Utility 4 | . . 2 2 Weapon 5 | . 1 2 2 Highest Loss Streak 5 | . 2 5 4 To Critical Strikes . | . . . . Average Backups 6 | 3 4 6 9 Power . | . . . . Propulsion 3 | 1 1 3 6 Utility . | . . 1 1 Weapon 1 | . 1 1 2 Tool/Special . | . . . . Unused Backups 7 | . . . 7 Power . | . . . . Propulsion 6 | . . . 6 Utility . | . . . . Weapon 1 | . . . 1 Tool/Special . | . . . . Average Slot Usage (%) 74 | . 85 74 58 Engine 9 | . 14 9 1 Treads 8 | . 14 8 . Leg 7 | . 10 9 . Wheel 9 | . . 10 18 Device 5 | . 8 2 9 Storage 11 | . 14 11 9 Processor 1 | . . . 8 Protection 3 | . . 6 . Energy Gun 4 | . 14 2 . Energy Cannon 4 | . . 4 10 Ballistic Gun 7 | . 8 9 . Peak Build Rating 24 | 6 7 18 24 Average Rating 10 | 3 6 10 17 On Entrance 6 | . 6 6 15 Avg Prop Armor Cover (%) 5 | . . 5 6 Naked Turns . | . . . . Heaviest Build 32 | 13 19 32 26 Greatest Support 40 | 40 40 40 24 Greatest Overweight (x) 8 | 4 . 8 6 Average Overweight (x) . | 2 . . 1 Largest Inventory Capacity 10 | 8 10 10 10 Average Capacity 9 | 7 9 10 10 Most Carried 10 | 6 7 10 9 Average Carried 6 | 3 4 6 9 Final Capacity 10 | 8 10 10 10 Final Carried 9 | 4 4 9 9 Class Distribution -------------------- 100% | Mutant Dominant Class ---------------- Mutant | -10/Materials Mutant | -9/Materials Mutant | -8/Materials Resources | -11 -10 -9 -8 ----------- Run | Yrd Mat Mat Mat Matter Collected 562 | 119 253 185 5 Remotely . | . . . . Salvage Created 1003 | . 432 478 93 Parts 70 | . 30 30 10 Haulers Intercepted 1 | . . 1 . Recyclers Shooed 1 | . . 1 . Parts Field Recycled . | . . . . Retrieved Matter . | . . . . Parts Self-Destructed . | . . . . Prevented . | . . . . Parts Restored . | . . . . Kills | -11 -10 -9 -8 ------- Run | Yrd Mat Mat Mat Combat Hostiles Destroyed 27 | . 15 10 2 Guns 18 | . 15 3 . Cannons 7 | . . 7 . AOE 2 | . . . 2 Classes Destroyed 7 | . 2 4 1 Builder 3 | . . . 3 Hauler 1 | . . 1 . Recycler 1 | . . 1 . Watcher 2 | . . 2 . Swarmer 12 | . 6 6 . Grunt 12 | . 9 1 2 Sentry 3 | . . 3 . Best Kill Streak 8 | . 8 4 4 Combat Bots Only 8 | . 8 4 2 Max Kills in Single Turn 2 | . 2 2 2 Gunslinging 1 | . 1 . . Exploded 1 | . . . 1 Melee . | . . . . Uniques/NPCs Destroyed . | . . . . Combat | -11 -10 -9 -8 -------- Run | Yrd Mat Mat Mat Hostile Shots Fired 394 | . 130 111 153 Missed 120 | . 38 33 49 Hits 274 | . 92 78 104 Projectile 274 | . 92 78 104 Critical Strikes 6 | . . 2 4 Damage Taken 3055 | . 883 1152 1020 Core 1108 | . 196 359 553 Absorbed by Shields . | . . . . Core Remaining (%) 43 | 100 21 10 . Volleys Fired 132 | . 60 64 8 Largest 2 | . 2 2 2 Hottest 150 | . 60 150 150 Shots Fired 188 | . 92 82 14 Gun 146 | . 92 54 . Cannon 39 | . . 28 11 Launcher 3 | . . . 3 Special . | . . . . Kinetic 72 | . 32 40 . Thermal 108 | . 60 37 11 Explosive 3 | . . . 3 Electromagnetic 5 | . . 5 . Robot Hit Streak 15 | . 15 9 3 Robot Miss Streak 7 | . 7 2 2 Penetration Max . | . . . . Secondary Targets 4 | . 4 . . Max Gunslinging Chain 1 | . 1 . . Shots Hit Robots 120 | . 55 57 8 Core Hits 49 | . 25 17 7 Critical Kills . | . . . . Critical Parts Destroyed . | . . . . Critical Strikes . | . . . . Melee Attacks . | . . . . Impact . | . . . . Slashing . | . . . . Piercing . | . . . . Sneak Attacks . | . . . . Combat Hostiles . | . . . . Follow-up Attacks . | . . . . Damage Inflicted 2199 | . 674 1012 513 Guns 1233 | . 674 559 . Cannons 575 | . . 425 150 Explosions 362 | . . . 362 Melee . | . . . . Ramming 29 | . . 28 1 Kinetic 733 | . 296 437 . Thermal 1029 | . 378 501 150 Explosive 362 | . . . 362 Electromagnetic 46 | . . 46 . Impact . | . . . . Slashing . | . . . . Piercing . | . . . . Highest Corruption 1 | . . 1 . Average Corruption 1 | . . 1 . Corruption Purged . | . . . . Corruption Blocked . | . . . . Overload Shots . | . . . . Overflow Damage 20 | . . . 20 Projectiles 5 | . . . 5 Explosions 15 | . . . 15 Melee . | . . . . Knockbacks . | . . . . Impact . | . . . . Kinetic . | . . . . Secondary . | . . . . Self-Inflicted Damage 9 | . . 9 . Shots . | . . . . Rammed 7 | . . 5 2 Targets Rammed 7 | . . 5 2 Kicked . | . . . . Crushed . | . . . . Highest Temperature 635 | . 72 635 42 Average Temperature 172 | . 33 255 16 Received Heat Transfer 729 | . 264 303 162 Effects 12 | . . 12 . Shutdowns 3 | . . 3 . Energy Bleed 3 | . . 3 . Matter Decay 2 | . . 2 . Short Circuit 1 | . . 1 . Damage (minor) 1 | . . 1 . Damage (core) 2 | . . 2 . Siege Activations . | . . . . Martial Activations . | . . . . Shielding Activations . | . . . . Robots Disrupted . | . . . . Combat Hostiles . | . . . . Robots Corrupted . | . . . . Combat Hostiles . | . . . . Parts Fried . | . . . . Impact Corruptions . | . . . . Robots Melted . | . . . . Combat Hostiles . | . . . . Parts Melted 3 | . 1 2 . Heat Transferred 1876 | . 850 804 222 Parts Sabotaged . | . . . . Parts Stolen . | . . . . Parts Stripped . | . . . . Power Chain Reactions . | . . . . Alert | -11 -10 -9 -8 ------- Run | Yrd Mat Mat Mat Maximum Alert Level . | . . . . Low Security (%) 100 | 100 100 100 100 Level 1 . | . . . . Level 2 . | . . . . Level 3 . | . . . . Level 4 . | . . . . Level 5 . | . . . . High Security . | . . . . Max Security . | . . . . Peak Influence 170 | . 170 156 81 Initial 67 | . . 67 65 Average 45 | . 99 27 35 Influence Increases 812 | . 340 361 111 Destroy 0b10 Robot/C 540 | . 300 200 40 Destroy 0b10 Robot/NC 35 | . . 20 15 Destroy Leader 106 | . 40 66 . Successful Hack 6 | . . 6 . Disable Machine 30 | . . 15 15 Destroy Structure 35 | . . 9 26 Partial Spotted 15 | . . 15 . Lose Combat Pursuer 45 | . . 30 15 Influence Decreases 797 | . 180 365 252 Entered New Map 184 | . . 93 91 Time Decay 476 | . 150 225 101 Lost Part 137 | . 30 47 60 Squads Dispatched 6 | . 2 2 2 Investigation 3 | . 1 2 . Extermination . | . . . . Reinforcement 3 | . 1 . 2 Assault . | . . . . Garrison . | . . . . Intercept . | . . . . Searches Triggered . | . . . . Construction Impeded . | . . . . Haulers Reinforced . | . . . . Active Scanning Responses . | . . . . Cargo Convoy Interrupts . | . . . . Stealth | -11 -10 -9 -8 --------- Run | Yrd Mat Mat Mat Distress Signals 6 | . . 3 3 Communications Jammed . | . . . . Distress Signals . | . . . . Times Spotted 65 | . 20 29 16 Peak Tracking Total 11 | . 9 11 8 Tactical Retreats 3 | . . 2 1 Traps | -11 -10 -9 -8 ------- Run | Yrd Mat Mat Mat Traps Triggered 3 | . 1 2 . Indirectly . | . . . . Trap Hack Attempts . | . . . . Triggered . | . . . . Disarmed . | . . . . Reprogrammed . | . . . . Reused . | . . . . Traps Extracted . | . . . . Installed . | . . . . Triggered . | . . . . Machines | -11 -10 -9 -8 ---------- Run | Yrd Mat Mat Mat Machines Disabled 2 | . . 1 1 Max in Single Turn 1 | . . 1 1 Machines Repaired . | . . . . Machines Dismantled . | . . . . Machines Sabotaged . | . . . . Overloaded Fab Kills . | . . . . Hacking | -11 -10 -9 -8 --------- Run | Yrd Mat Mat Mat Machines Accessed 4 | . . 4 . Terminals 4 | . . 4 . Fabricators . | . . . . Repair Stations . | . . . . Recycling Units . | . . . . Scanalyzers . | . . . . Garrison Access . | . . . . Total Hacks 9 | . . 9 . Successful 1 | . . 1 . Failed 8 | . . 8 . Catastrophic 3 | . . 3 . Database Lockouts . | . . . . Manual 6 | . . 6 . Terminals 9 | . . 9 . Fabricators . | . . . . Repair Stations . | . . . . Recycling Units . | . . . . Scanalyzers . | . . . . Garrison Access . | . . . . Terminal Hacks 1 | . . 1 . Terminal Index 1 | . . 1 . Fabricator Hacks . | . . . . Repair Station Hacks . | . . . . Recycling Unit Hacks . | . . . . Scanalyzer . | . . . . Garrison Access Hacks . | . . . . Unauthorized Hacks . | . . . . Terminals . | . . . . Fabricators . | . . . . Repair Stations . | . . . . Recycling Units . | . . . . Scanalyzers . | . . . . Garrison Access . | . . . . Data Cores Recovered . | . . . . Used . | . . . . Hacking Detections 3 | . . 3 . Full Trace Events 1 | . . 1 . Feedback Events 1 | . . 1 . Corruption 1 | . . 1 . Feedback Blocked . | . . . . Robot Schematics Acquired . | . . . . Robots Built . | . . . . Authchips . | . . . . Time . | . . . . Total Robot Build Rating . | . . . . Part Schematics Acquired . | . . . . Parts Built . | . . . . Authchips . | . . . . Time . | . . . . Total Part Build Rating . | . . . . Part Studies Acquired . | . . . . Parts Repaired . | . . . . Time . | . . . . Parts Recycled . | . . . . Recycled Matter . | . . . . Retrieved Matter . | . . . . Retrieved Components . | . . . . Parts Scanalyzed . | . . . . Part Schematics Acquired . | . . . . Parts Damaged . | . . . . Bothacking | -11 -10 -9 -8 ------------ Run | Yrd Mat Mat Mat Used RIF Installer . | . . . . Robots Hacked . | . . . . Non-combat . | . . . . Combat . | . . . . Robot Hacks Applied . | . . . . Relay Couplers Released . | . . . . Fabnet Peak Effective % . | . . . . Robots Rewired . | . . . . Allies Hacked . | . . . . Hacks Repelled . | . . . . Allies | -11 -10 -9 -8 -------- Run | Yrd Mat Mat Mat Total Allies . | . . . . Largest Group . | . . . . Highest-Rated Group . | . . . . Highest-Rated Ally . | . . . . Total Orders . | . . . . Ally Attacks . | . . . . Total Damage . | . . . . Kills . | . . . . Allies Corrupted . | . . . . Allies Melted . | . . . . Intel | -11 -10 -9 -8 ------- Run | Yrd Mat Mat Mat Active Infowar (turns) 87 | . . . 87 Sensors 87 | . . . 87 Robot Analysis Total . | . . . . Derelict Logs Recovered . | . . . . Drone Launches . | . . . . Drone Recoveries . | . . . . Exploration | -11 -10 -9 -8 ------------- Run | Yrd Mat Mat Mat Turns Passed 1512 | 81 382 772 277 Spaces Moved 809 | 34 157 483 135 Core 72 | 31 . 2 39 Treads 247 | 3 81 163 . Legs 179 | . 76 103 . Wheels 311 | . . 215 96 Hover . | . . . . Flight . | . . . . Fastest Speed 50 | 50 120 90 90 Average Speed 131 | 195 140 122 136 Slowest Speed 450 | 250 160 450 350 Overloaded Moves . | . . . . Propulsion Burnouts . | . . . . Robots Hopped . | . . . . Potential Cave-ins . | . . . . Cave-ins Triggered . | . . . . Exploration Rate (%) 24 | 3 36 40 19 Regions Visited 3 Branch Regions . Pre-discovered Areas . | . . . . Known Exits Taken . | . . . . Unknown Exits Taken 3 | 1 1 1 . Scrap Searched . | . . . . Spaces Dug 1 | . . 1 . Terrain Destroyed 36 | . . 9 27 Melee . | . . . . Projectile 13 | . . 9 4 AOE 23 | . . . 23 Terrain Rammed . | . . . . Walls Destroyed . | . . . . Machines Disabled . | . . . . Actions | -11 -10 -9 -8 --------- Run | Yrd Mat Mat Mat Total 1057 | 46 224 578 209 Wait 59 | . . . 59 Move 806 | 33 156 482 135 Hop . | . . . . Pick Up 14 | 6 1 7 . Fast Attach 19 | 4 1 10 4 Attach 6 | 2 2 2 . Detach 3 | . . 3 . Swap 5 | 1 3 . 1 Drop 6 | . 1 5 . Fire 132 | . 60 64 8 Melee . | . . . . Ram 4 | . . 2 2 Kick . | . . . . Crush 3 | . . 3 . Escape Stasis . | . . . . Rewire . | . . . . Trap . | . . . . Miscellaneous . | . . . . Route ------- -11/Scrapyard -10/Materials -9/Materials -8/Materials History --------- Turn | Location | Event 12 | -11/Scrapyard | Discovered new exit (range 16) 82 | -11/Scrapyard | Entered Materials 243 | -10/Materials | Destroyed 8 combat bots 311 | -10/Materials | Build established: Mutant 323 | -10/Materials | Core integrity fell below 50% 354 | -10/Materials | Discovered new exit (range 8) 464 | -10/Materials | Entered another Materials area 464 | -9/Materials | Evolved 2 slots: Propulsion x1, Utility x1 659 | -9/Materials | Lost 5 parts (1p1n1u2w) 1150 | -9/Materials | Core integrity fell below 50% 1183 | -9/Materials | Core integrity fell below 20% 1227 | -9/Materials | Discovered new exit (range 11) 1236 | -9/Materials | Entered another Materials area 1236 | -8/Materials | Evolved 2 slots: Propulsion x1, Utility x1 1443 | -8/Materials | Lost 3 parts (2n1w) 1472 | -8/Materials | Core integrity fell below 50% 1484 | -8/Materials | Core integrity fell below 20% 1513 | -8/Materials | Destroyed by S-10 Pest with Light Assault Rifle Last Messages --------------- 01426_ U-05 Engineer lays Concrete. 01433_ K-01 Serf collects debris. 01441_ O-16 Technician: "IFF HANDSHAKE FAILED. SECURING TERMINAL." 01443_ ALERT: Hostiles spotted, dispatching reinforcements to Terminal M006. 01449_ Lgt. Ion Engine destroyed. 01449_ Broken Arm. Wheel destroyed. 01456_ Imp. Grenade Launcher destroyed. 01458_ M-13 Machinist repairs S-10 Pest. 01459_ Slammed into S-10 Pest. 01468_ Critical hit (Burn: +37). 01469_ S-10 Pest destroyed. 01477_ Critical hit (Burn: +37). 01486_ Imp. Heat Sink destroyed. 01488_ O-16 Technician: "IFF HANDSHAKE FAILED. SECURING TERMINAL." 01489_ O-16 Technician sends out distress signal. 01489_ O-16 Technician uses terminal to summon reinforcements. 01489_ ALERT: Hostiles spotted, dispatching reinforcements to Terminal M009. 01489_ O-16 Technician locks terminal. Map ----- +----------------------------------------------------+ | ???????# #???????# =#?? """???????????? | | ???????# #???????# =%#?T """ ??????????? | | ???????# #???????# [# " """ #????????? | | ???????##########???????# / #????????? | | ????????????????????????# # /// #???????? | | ????????????????????????# # ! /// ##???????? | | ????????????????????????# #? /// #????????? | | ????????????????????????# #?? #????????? | | ????????????????????????# ###########???????? | | ????????????????????????# # #???????? | | ????????????????????????# " #???????? | | ??????????????# ##### # ] #???????? | | ??????????????+ " # #???????? | | ??????????????# ##### #?#########???????? | | ?????????????????????#####/#####??????????????? | | ?????????????????????# #??????????????? | | ?????????????????????# o """ #??????????????? | | ???????????????????### Y""""" #??????????????? | | ???????????????????#"" s""""" #??????????????? | | ???????????????????#"T s""""" #??????????????? | | ???????????????????#"" / """ #??????????????? | | ???????????????????### #??????????????? | | ?????????????????????# s "T" #??????????????? | | ?????????????????????####/######??????????????? | | ????????????????????????# #???????????????????? | | ????????????????????????#@#???????????????????? | | ????????????????????????# #???????????????????? | | ????????????????????????# #???????????????????? | | ????????????????????????# #???????????????????? | | ????????????????????????# #???????????????????? | | ???????????????????????? ???????????????????? | | ???????????????????????? ???????????????????? | | ???????????????????????? ???????????????????? | | ???????????????????????? ???????????????????? | | ???????????????????????? ???????????????????? | | ????????????????????????# #???????????????????? | | ????????????????????????? ????????????????????? | | ????????????????????????? ????????????????????? | | ?????????????????????????+????????????????????? | | ??????????????????????????????????????????????? | | ??????????????????????????????????????????????? | | ??????????????????????????????????????????????? | | ??????????????????????????????????????????????? | | ??????????????????????????????????????????????? | | ??????????????????????????????????????????????? | | ??????????????????????????????????????????????? | | ??????????????????????????????????????????????? | | ??????????????????????????????????????????????? | | ??????????????????????????????????????????????? | | ??????????????????????????????????????????????? | +----------------------------------------------------+ Best States ------------- Heat Dissipation 45 Energy Generation 12 Energy Capacity 265 Matter Stores 300 Matter Capacity 300 Sight Range 16 Robot Scan Range 15 Terrain Scan Density 10 Armor Coverage 150 Evasion (%) 55 Recoil Reduction 2 Item Schematics ----------------- None Robot Schematics ------------------ None Fabricated ------------ Nothing Repaired ---------- Nothing Studied --------- None Alien Tech Used ----------------- None Achievements -------------- None Challenges ------------ None Game ------ Seed PhasingDispersionReplica Manual? 0 Play Time 00:15:02 Cumulative 68.5 hours Start 2026.04.20 @ 16:45:42 End 2026.04.20 @ 16:58:12 Sessions 1 Manual Loads 0 Difficulty Rogue Special Mode None Game No. 134 Rogue 134 Adventurer 0 Explorer 0 Win Type - Total 0 Types 0/0/0/0/0/0/0/0/0/0 Lore% 15 Gallery% 33 Achievement% 23 Wizard Run 0 Options --------- Layout 0 ASCII 0 Keyboard 1 Movement Vi Keybinds 0 Fullscreen 2 Font 18/T_Terminus Map View 76x50 Zoom Use 0% Tactical HUD 1 Map Filters SHIFT_HUE(5) Filters LOW_CONTRAST(10,2,20)|SHIFT_HUE(5) Steam 1 RUN: 0c0ff484-8a55-44b1-90e4-547f5bc8ef4f